[Event "XX Gran Hotel Bali-B 2023"]
[Site "Benidorm"]
[Date "2023.12.03"]
[Round "3.12"]
[White "Bravo Plaza, Luis"]
[Black "Martin Ramos, Hector"]
[Result "*"]
[ECO "B23"]
[WhiteElo "1833"]
[BlackElo "1981"]
[Annotator "NA RC"]
[PlyCount "132"]
[EventDate "2023.12.02"]
[EventType "swiss"]
[EventCountry "ESP"]
[SourceTitle "playchess.com"]
[Source "ChessBase"]
[SourceQuality "1"]
[TimeControl "5400+30"]

1. e4 {[%emt 0:00:04]} c5 {[%emt 0:01:52]} 2. Nc3 {[%emt 0:00:28]} a6 {[%emt 0:00:24]} 3. g3 {[%emt 0:00:28]} b5 {[%emt 0:00:10]} 4. Bg2 {[%emt 0:00:05]} Bb7 {[%emt 1:30:04]} 5. Nge2 {[%emt 0:02:19]} Nf6 {[%emt 0:00:44]} 6. d3 {[%emt 0:00:18]} e6 {[%emt 0:01:24]} 7. O-O {[%emt 0:00:22]} d6 {[%emt 0:03:07]} 8. h3 {[%emt 0:04:50]} Nbd7 {[%emt 0:02:46]} 9. f4 {[%emt 0:03:41]} Nb6 {[%emt 1:24:27]} 10. b3 {[%emt 0:04:53]} d5 {[%emt 0:00:00]} 11. e5 {[%emt 0:02:39]} Nfd7 {[%emt 0:00:00]} 12. a4 {[%emt 0:05:12]} b4 {[%emt 0:00:00]} 13. Nb1 {[%emt 0:00:40]} a5 {[%emt 0:00:00]} 14. Nd2 {[%emt 0:00:26]} Qc7 {[%emt 0:00:00]} 15. Bb2 {[%emt 0:02:54]} O-O-O {[%emt 0:03:00]} 16. c3 {[%emt 0:00:31]} Ba6 {[%emt 0:00:00]} 17. cxb4 {[%emt 0:00:26]} axb4 {[%emt 0:00:00]} 18. a5 {[%emt 0:00:02]} Na8 {[%emt 0:04:30]} 19. Qc2 {[%emt 0:03:29]} Kb8 {[%emt 0:00:00]} 20. Rfc1 {[%emt 1:06:43]} Qb7 {[%emt 0:00:00]} 21. f5 {[%emt 1:04:48]} Be7 {[%emt 0:00:00]} 22. Nf4 {[%emt 0:00:20]} Nc7 {[%emt 0:00:00]} 23. Nc4 {[%emt 0:00:34]} Qa7 {[%emt 0:00:00]} 24. Nd6 {[%emt 0:04:22]} Nxe5 {[%emt 0:00:00]} 25. Bxe5 {[%emt 0:01:11]} Bxd6 {[%emt 0:00:00]} 26. Bxd6 {[%emt 0:02:36]} Rxd6 {[%emt 0:00:00]} 27. Kh2 {[%emt 0:06:11]} e5 {[%emt 0:00:00]} 28. Ne2 {[%emt 0:02:22]} Rc6 {[%emt 0:00:00]} 29. Qd2 {[%emt 0:00:02]} f6 {[%emt 0:00:00]} 30. Ra2 {[%emt 0:03:58]} Qb7 {[%emt 0:00:00]} 31. Qe3 {[%emt 0:07:17]} Qb5 {[%emt 0:00:00]} 32. Rd2 {[%emt 0:00:02]} Rd8 {[%emt 0:11:30]} 33. Bf1 {[%emt 0:00:51]} d4 {[%emt 0:00:34]} 34. Qe4 {[%emt 0:01:03]} Nd5 {[%emt 0:00:33]} 35. Bg2 {[%emt 0:00:59]} Bb7 {[%emt 0:00:51]} 36. a6 {[%emt 0:05:11]} Qxa6 {[%emt 0:01:42]} 37. Qh4 {[%emt 0:00:40]} h6 {[%emt 0:04:27]} 38. Be4 {[%emt 0:00:17]} Rc7 {[%emt 0:00:34]} 39. Rdc2 {[%emt 0:00:11]} Nc3 {[%emt 0:00:20]} 40. Nxc3 {[%emt 0:00:09]} dxc3 {[%emt 0:00:23]} 41. Qg4 {[%emt 0:01:01]} Rd4 {[%emt 0:00:47]} 42. Qf3 {[%emt 0:00:14]} Rcd7 {[%emt 0:01:30]} 43. Qe3 {[%emt 0:05:08]} Bxe4 {[%emt 0:00:27]} 44. dxe4 {[%emt 0:00:05]} Rd2+ {[%emt 0:00:50]} 45. Rxd2 {[%emt 0:01:37]} Rxd2+ {[%emt 0:00:07]} 46. Kg1 {[%emt 0:00:13]} Qa2 {[%emt 0:00:58]} 47. Qf3 {[%emt 0:06:26]} Qb2 {[%emt 0:00:32]} 48. Qf1 {[%emt 0:00:40]} Rg2+ {[%emt 0:00:56]} 49. Kh1 {[%emt 0:18:13]} Qe2 {[%emt 0:00:06]} 50. Qxg2 {[%emt 0:00:19]} Qe3 {[%emt 0:00:20]} 51. Rc2 {[%emt 0:00:53]} c4 {[%emt 0:00:05]} 52. Re2 {[%emt 0:01:13]} Qd4 {[%emt 0:02:04]} 53. bxc4 {[%emt 0:15:25]} b3 {[%emt 0:00:17]} 54. Qf3 {[%emt 0:00:56]} Qd1+ {[%emt 0:02:08]} 55. Kg2 {[%emt 0:00:12]} Kc8 {[%emt 0:01:10]} 56. Qe3 {[%emt 0:00:22]} b2 {[%emt 0:01:02]} 57. Qc5+ {[%emt 0:01:06]} Kd8 {[%emt 0:00:21]} 58. Qf8+ {[%emt 0:00:05]} Kc7 {[%emt 0:00:30]} 59. Qc5+ {[%emt 0:00:07]} Kd7 {[%emt 0:00:09]} 60. Qb5+ {[%emt 0:00:04]} Ke7 {[%emt 0:00:05]} 61. Rxb2 {[%emt 0:00:10]} cxb2 {[%emt 0:00:35]} 62. Qxb2 {[%emt 0:00:02]} Qd3 {[%emt 0:00:38]} 63. Qb7+ {[%emt 0:00:21]} Kf8 {[%emt 0:00:09]} 64. Qa8+ {[%emt 0:00:33]} Ke7 {[%emt 0:00:14]} 65. Qb7+ {[%emt 0:00:13]} Kf8 {[%emt 0:02:36]} 66. Qd5 {[%emt 0:00:59]} Qe2+ {[%emt 0:00:10]} *

[Event "XX Gran Hotel Bali-B 2023"]
[Site "Benidorm"]
[Date "2023.12.04"]
[Round "4.1"]
[White "Garcia Fernandez, Jose Antonio"]
[Black "Talledo Lagos, Cesar Frank"]
[Result "0-1"]
[ECO "E80"]
[WhiteElo "1927"]
[BlackElo "1993"]
[Annotator "NA RC"]
[PlyCount "52"]
[EventDate "2023.12.02"]
[EventType "swiss"]
[EventCountry "ESP"]
[SourceTitle "playchess.com"]
[Source "ChessBase"]
[SourceQuality "1"]
[TimeControl "5400+30"]

1. c4 {[%emt 0:00:30]} Nf6 {[%emt 0:07:13]} 2. Nc3 {[%emt 0:00:23]} g6 {[%emt 0:00:52]} 3. d4 {[%emt 0:01:13]} Bg7 {[%emt 0:00:08]} 4. e4 {[%emt 0:00:06]} d6 {[%emt 0:00:03]} 5. f3 {[%emt 0:00:06]} Nc6 {[%emt 0:05:40]} 6. Be3 {[%emt 0:00:27]} a6 {[%emt 0:03:22]} 7. Nge2 {[%emt 0:00:34]} Rb8 {[%emt 0:01:02]} 8. d5 {[%emt 0:04:09]} Ne5 {[%emt 0:00:31]} 9. Nd4 {[%emt 0:00:23]} c5 {[%emt 0:01:00]} 10. Nc2 {[%emt 0:00:54]} O-O {[%emt 0:02:37]} 11. Be2 {[%emt 0:01:24]} b5 {[%emt 0:17:09]} 12. cxb5 {[%emt 0:05:39]} axb5 {[%emt 0:00:04]} 13. Bxb5 {[%emt 0:00:17]} Rxb5 {[%emt 0:17:47]} 14. Nxb5 {[%emt 0:00:05]} Qa5+ {[%emt 0:00:03]} 15. Nc3 {[%emt 0:00:08]} Ba6 {[%emt 0:00:03]} 16. Bd2 {[%emt 0:17:50]} Nd3+ {[%emt 0:01:59]} 17. Kf1 {[%emt 0:00:06]} Nxb2+ {[%emt 0:01:47]} 18. Ne2 {[%emt 0:00:02]} Qa4 {[%emt 0:03:46]} 19. Qc1 {[%emt 0:14:05]} Qc4 {[%emt 0:05:02]} 20. Ncd4 {[%emt 0:02:15]} cxd4 {[%emt 0:02:14]} 21. Qxc4 {[%emt 0:00:17]} Nxc4 {[%emt 0:00:06]} 22. Bb4 {[%emt 0:03:16]} d3 {[%emt 0:01:33]} 23. Nc3 {[%emt 0:01:12]} Nh5 {[%emt 0:03:47]} 24. g4 {[%emt 0:13:14]} Nf4 {[%emt 0:00:56]} 25. Kf2 {[%emt 0:02:55]} Bd4+ {[%emt 0:00:27]} 26. Kg3 {[%emt 0:00:38]} Bxc3 {[%emt 0:00:26]} 0-1

[Event "XX Gran Hotel Bali-B 2023"]
[Site "Benidorm"]
[Date "2023.12.04"]
[Round "4.2"]
[White "Vladut, Matei"]
[Black "Marquez Bernal, Florencio"]
[Result "1-0"]
[ECO "E06"]
[WhiteElo "1989"]
[BlackElo "1894"]
[Annotator "NA RC"]
[PlyCount "75"]
[EventDate "2023.12.02"]
[EventType "swiss"]
[EventCountry "ESP"]
[SourceTitle "playchess.com"]
[Source "ChessBase"]
[SourceQuality "1"]
[TimeControl "5400+30"]

1. c4 {[%emt 0:01:17]} c6 {[%emt 0:01:24]} 2. g3 {[%emt 0:00:19]} d5 {[%emt 0:01:32]} 3. Bg2 {[%emt 0:00:05]} Nf6 {[%emt 0:01:56]} 4. Nf3 {[%emt 0:02:43]} e6 {[%emt 0:02:34]} 5. O-O {[%emt 0:00:23]} Be7 {[%emt 0:00:10]} 6. d4 {[%emt 0:01:38]} O-O {[%emt 0:00:51]} 7. Nc3 {[%emt 0:00:14]} b6 {[%emt 0:02:29]} 8. Nd2 {[%emt 0:07:05]} Bb7 {[%emt 0:10:34]} 9. e4 {[%emt 0:00:11]} dxe4 {[%emt 0:01:01]} 10. Ndxe4 {[%emt 0:00:02]} Nxe4 {[%emt 0:00:28]} 11. Nxe4 {[%emt 0:00:06]} Qd7 {[%emt 0:00:18]} 12. Be3 {[%emt 0:00:41]} Na6 {[%emt 0:05:31]} 13. Qa4 {[%emt 0:02:25]} b5 {[%emt 0:09:50]} 14. Qb3 {[%emt 0:04:19]} bxc4 {[%emt 0:07:50]} 15. Qxc4 {[%emt 0:00:05]} Rfc8 {[%emt 0:03:47]} 16. Nc5 {[%emt 0:01:00]} Bxc5 {[%emt 0:03:09]} 17. dxc5 {[%emt 0:00:35]} Nc7 {[%emt 0:00:23]} 18. Rfd1 {[%emt 0:00:53]} Nd5 {[%emt 0:01:29]} 19. Bf4 {[%emt 0:00:30]} a5 {[%emt 0:01:51]} 20. Bd6 {[%emt 0:01:50]} Ba6 {[%emt 0:02:44]} 21. Qh4 {[%emt 0:00:28]} Qd8 {[%emt 0:01:19]} 22. Qg4 {[%emt 0:01:26]} Qf6 {[%emt 0:02:05]} 23. Rd2 {[%emt 0:00:11]} Qg6 {[%emt 0:04:21]} 24. Qd4 {[%emt 0:01:20]} Qf6 {[%emt 0:03:13]} 25. Be5 {[%emt 0:00:08]} Qg6 {[%emt 0:00:19]} 26. Re1 {[%emt 0:04:44]} Rd8 {[%emt 0:05:33]} 27. Be4 {[%emt 0:03:58]} Qg5 {[%emt 0:04:37]} 28. h4 {[%emt 0:00:35]} Qh6 {[%emt 0:00:41]} 29. f4 {[%emt 0:13:32]} f6 {[%emt 0:04:33]} 30. Bd6 {[%emt 0:00:20]} e5 {[%emt 0:00:14]} 31. fxe5 {[%emt 0:01:56]} fxe5 {[%emt 0:01:07]} 32. Bxd5+ {[%emt 0:04:35]} cxd5 {[%emt 0:00:44]} 33. Qxd5+ {[%emt 0:00:04]} Kh8 {[%emt 0:00:17]} 34. Rf2 {[%emt 0:01:23]} Qg6 {[%emt 0:02:28]} 35. Kh2 {[%emt 0:01:29]} Rac8 {[%emt 0:06:56]} 36. Rxe5 {[%emt 0:03:24]} h6 {[%emt 0:01:11]} 37. Re6 {[%emt 0:01:40]} Qb1 {[%emt 0:01:55]} 38. Rxh6+ {[%emt 0:41:56]} 1-0

[Event "XX Gran Hotel Bali-B 2023"]
[Site "Benidorm"]
[Date "2023.12.04"]
[Round "4.3"]
[White "Sempere Domenech, Abel"]
[Black "Nordgreen, Jan Thomas"]
[Result "1-0"]
[ECO "D00"]
[WhiteElo "1981"]
[BlackElo "1705"]
[Annotator "NA RC"]
[PlyCount "91"]
[EventDate "2023.12.02"]
[EventType "swiss"]
[EventCountry "ESP"]
[SourceTitle "playchess.com"]
[Source "ChessBase"]
[SourceQuality "1"]
[TimeControl "5400+30"]

1. d4 {[%emt 0:03:52]} Nf6 {[%emt 0:02:15]} 2. Bg5 {[%emt 0:00:30]} d5 {[%emt 0:02:07]} 3. Bxf6 {[%emt 0:04:21]} exf6 {[%emt 0:09:15]} 4. e3 {[%emt 0:02:03]} c5 {[%emt 0:05:54]} 5. Nc3 {[%emt 0:06:23]} Be6 {[%emt 0:01:29]} 6. Nge2 {[%emt 0:09:52]} Bd6 {[%emt 0:04:38]} 7. g3 {[%emt 0:04:22]} cxd4 {[%emt 0:03:11]} 8. Nxd4 {[%emt 0:01:17]} O-O {[%emt 0:00:33]} 9. Bg2 {[%emt 0:00:13]} Be5 {[%emt 0:08:52]} 10. O-O {[%emt 0:02:58]} Nc6 {[%emt 0:00:38]} 11. Qd2 {[%emt 0:04:37]} Nxd4 {[%emt 0:03:43]} 12. exd4 {[%emt 0:01:02]} Bc7 {[%emt 0:00:22]} 13. Ne2 {[%emt 0:02:34]} Rc8 {[%emt 0:01:12]} 14. c3 {[%emt 0:00:45]} Qd7 {[%emt 0:02:53]} 15. Nc1 {[%emt 0:03:45]} Bh3 {[%emt 0:02:26]} 16. Nd3 {[%emt 0:01:12]} Bxg2 {[%emt 0:00:53]} 17. Kxg2 {[%emt 0:00:02]} Bd6 {[%emt 0:04:20]} 18. Rfe1 {[%emt 0:03:02]} Qf5 {[%emt 0:02:50]} 19. Re2 {[%emt 0:01:10]} Rfe8 {[%emt 0:00:39]} 20. Rae1 {[%emt 0:00:40]} Re4 {[%emt 0:04:47]} 21. f3 {[%emt 0:01:46]} Rxe2+ {[%emt 0:01:37]} 22. Rxe2 {[%emt 0:02:04]} h5 {[%emt 0:01:02]} 23. Nf2 {[%emt 0:04:42]} g5 {[%emt 0:04:26]} 24. Qd3 {[%emt 0:01:57]} Qd7 {[%emt 0:02:16]} 25. Nd1 {[%emt 0:01:16]} Kg7 {[%emt 0:06:13]} 26. Ne3 {[%emt 0:01:17]} Bf8 {[%emt 0:03:28]} 27. Nf5+ {[%emt 0:03:56]} Kg8 {[%emt 0:00:27]} 28. h4 {[%emt 0:03:46]} Re8 {[%emt 0:00:35]} 29. Rxe8 {[%emt 0:01:29]} Qxe8 {[%emt 0:00:05]} 30. hxg5 {[%emt 0:00:50]} fxg5 {[%emt 0:00:16]} 31. Qe3 {[%emt 0:01:29]} Qd8 {[%emt 0:02:04]} 32. Qe5 {[%emt 0:01:20]} Qb6 {[%emt 0:00:22]} 33. Kh3 {[%emt 0:05:09]} Qe6 {[%emt 0:04:08]} 34. f4 {[%emt 0:01:19]} Kh7 {[%emt 0:00:42]} 35. Kg2 {[%emt 0:12:13]} Kg6 {[%emt 0:05:30]} 36. Ne3 {[%emt 0:00:44]} gxf4 {[%emt 0:00:33]} 37. gxf4 {[%emt 0:00:13]} Qxe5 {[%emt 0:06:10]} 38. fxe5 {[%emt 0:00:04]} f6 {[%emt 0:00:10]} 39. e6 {[%emt 0:00:35]} f5 {[%emt 0:02:17]} 40. Nxd5 {[%emt 0:00:29]} Bh6 {[%emt 0:00:17]} 41. a4 {[%emt 0:00:40]} Bg5 {[%emt 0:00:33]} 42. a5 {[%emt 0:00:33]} h4 {[%emt 0:00:17]} 43. b4 {[%emt 0:00:24]} f4 {[%emt 0:00:47]} 44. c4 {[%emt 0:00:55]} b6 {[%emt 0:02:56]} 45. a6 {[%emt 0:00:16]} Bf6 {[%emt 0:01:07]} 46. e7 {[%emt 0:00:39]} 1-0

[Event "XX Gran Hotel Bali-B 2023"]
[Site "Benidorm"]
[Date "2023.12.04"]
[Round "4.4"]
[White "Clausen, Karl Erik"]
[Black "Lloret Climent, Miguel"]
[Result "0-1"]
[ECO "A05"]
[WhiteElo "1899"]
[BlackElo "1954"]
[Annotator "NA"]
[PlyCount "124"]
[EventDate "2023.12.02"]
[EventType "swiss"]
[EventCountry "ESP"]
[SourceTitle "playchess.com"]
[Source "ChessBase"]
[SourceQuality "1"]
[TimeControl "5400+30"]

1. e3 {[%emt 0:00:04]} c5 {[%emt 0:00:11]} 2. b3 {[%emt 0:00:16]} Nc6 {[%emt 0:00:20]} 3. Bb2 {[%emt 0:00:10]} Nf6 {[%emt 0:00:23]} 4. Nf3 {[%emt 0:00:26]} e6 {[%emt 0:00:44]} 5. Be2 {[%emt 0:03:56]} Be7 {[%emt 0:02:11]} 6. O-O {[%emt 0:00:08]} O-O {[%emt 0:01:00]} 7. d4 {[%emt 0:02:46]} b6 {[%emt 0:03:12]} 8. c4 {[%emt 0:01:50]} cxd4 {[%emt 0:02:30]} 9. Nxd4 {[%emt 0:01:21]} Nxd4 {[%emt 0:00:24]} 10. Qxd4 {[%emt 0:00:54]} Bb7 {[%emt 0:00:53]} 11. Rd1 {[%emt 0:08:56]} d6 {[%emt 0:02:16]} 12. Nd2 {[%emt 0:04:49]} e5 {[%emt 0:03:14]} 13. Qd3 {[%emt 0:03:14]} Qc7 {[%emt 0:04:52]} 14. Qf5 {[%emt 0:04:34]} g6 {[%emt 0:04:25]} 15. Qc2 {[%emt 0:06:04]} Nd7 {[%emt 0:10:06]} 16. Rac1 {[%emt 0:03:15]} f5 {[%emt 0:01:41]} 17. Nb1 {[%emt 0:05:45]} f4 {[%emt 0:04:13]} 18. e4 {[%emt 0:01:41]} Nf6 {[%emt 0:02:23]} 19. f3 {[%emt 0:03:04]} Rac8 {[%emt 0:01:03]} 20. Qd2 {[%emt 0:02:51]} g5 {[%emt 0:10:25]} 21. Ba3 {[%emt 0:01:45]} Rcd8 {[%emt 0:04:01]} 22. Nc3 {[%emt 0:01:16]} a6 {[%emt 0:01:12]} 23. Qe1 {[%emt 0:04:23]} Kh8 {[%emt 0:03:48]} 24. Qf2 {[%emt 0:02:15]} Bc6 {[%emt 0:02:08]} 25. Nd5 {[%emt 0:01:29]} Bxd5 {[%emt 0:06:28]} 26. cxd5 {[%emt 0:02:52]} Qd7 {[%emt 0:01:01]} 27. Qxb6 {[%emt 0:02:10]} g4 {[%emt 0:03:07]} 28. Rc7 {[%emt 0:07:56]} Qe8 {[%emt 0:00:48]} 29. Qa7 {[%emt 0:00:02]} Rf7 {[%emt 0:01:08]} 30. Rdc1 {[%emt 0:00:57]} gxf3 {[%emt 0:02:24]} 31. gxf3 {[%emt 0:02:30]} Rg7+ {[%emt 0:00:17]} 32. Kh1 {[%emt 0:00:02]} Nh5 {[%emt 0:02:02]} 33. Rg1 {[%emt 0:05:08]} Ng3+ {[%emt 0:00:38]} 34. hxg3 {[%emt 0:00:24]} Qh5+ {[%emt 0:00:12]} 35. Kg2 {[%emt 0:00:04]} Rxg3+ {[%emt 0:02:24]} 36. Kf1 {[%emt 0:00:54]} Rxg1+ {[%emt 0:00:36]} 37. Qxg1 {[%emt 0:02:53]} Rg8 {[%emt 0:00:29]} 38. Rc8 {[%emt 0:04:15]} Qh3+ {[%emt 0:03:21]} 39. Ke1 {[%emt 0:00:06]} Qxc8 {[%emt 0:00:07]} 40. Qf2 {[%emt 0:01:54]} Qc3+ {[%emt 0:00:37]} 41. Kd1 {[%emt 0:00:49]} Qa1+ {[%emt 0:00:29]} 42. Kc2 {[%emt 0:00:15]} Qh1 {[%emt 0:03:01]} 43. Qa7 {[%emt 0:00:53]} Qe1 {[%emt 0:04:53]} 44. Bxa6 {[%emt 0:05:06]} Bf8 {[%emt 0:08:01]} 45. Qf7 {[%emt 0:02:58]} Qf2+ {[%emt 0:00:20]} 46. Kc3 {[%emt 0:00:44]} Qd4+ {[%emt 0:01:26]} 47. Kc2 {[%emt 0:00:17]} Bg7 {[%emt 0:01:05]} 48. Bc4 {[%emt 0:02:50]} Qf2+ {[%emt 0:00:19]} 49. Kb1 {[%emt 0:00:25]} Qxf3 {[%emt 0:00:09]} 50. Bxd6 {[%emt 0:00:08]} Qxe4+ {[%emt 0:00:07]} 51. Kc1 {[%emt 0:00:45]} f3 {[%emt 0:00:57]} 52. Bc5 {[%emt 0:00:02]} Qe1+ {[%emt 0:01:13]} 53. Kc2 {[%emt 0:00:09]} e4 {[%emt 0:00:32]} 54. d6 {[%emt 0:00:46]} Qc3+ {[%emt 0:00:27]} 55. Kd1 {[%emt 0:00:01]} Qa1+ {[%emt 0:00:38]} 56. Kc2 {[%emt 0:00:02]} Qxa2+ {[%emt 0:00:31]} 57. Kd1 {[%emt 0:00:03]} Qa1+ {[%emt 0:00:41]} 58. Kc2 {[%emt 0:00:02]} Qa2+ {[%emt 0:00:31]} 59. Kd1 {[%emt 0:00:01]} Qb1+ {[%emt 0:00:19]} 60. Kd2 {[%emt 0:00:14]} Bh6+ {[%emt 0:00:23]} 61. Kc3 {[%emt 0:00:12]} Qe1+ {[%emt 0:00:25]} 62. Kc2 {[%emt 0:00:48]} Qc1# {[%emt 0:00:10]} 0-1

[Event "XX Gran Hotel Bali-B 2023"]
[Site "Benidorm"]
[Date "2023.12.04"]
[Round "4.5"]
[White "Tejedor Barber, Lorenzo"]
[Black "Gyaneshwar B"]
[Result "1/2-1/2"]
[ECO "B55"]
[WhiteElo "1951"]
[BlackElo "1712"]
[Annotator "NA RC"]
[PlyCount "96"]
[EventDate "2023.12.02"]
[EventType "swiss"]
[EventCountry "ESP"]
[SourceTitle "playchess.com"]
[Source "ChessBase"]
[SourceQuality "1"]
[TimeControl "5400+30"]

1. e4 {[%emt 0:04:05]} c5 {[%emt 0:05:30]} 2. Nf3 {[%emt 0:03:46]} d6 {[%emt 0:00:01]} 3. d4 {[%emt 0:00:19]} cxd4 {[%emt 0:00:04]} 4. Nxd4 {[%emt 0:00:12]} Nf6 {[%emt 0:00:22]} 5. f3 {[%emt 0:00:24]} e5 {[%emt 0:05:10]} 6. Bb5+ {[%emt 0:00:25]} Bd7 {[%emt 0:13:16]} 7. Bxd7+ {[%emt 0:01:34]} Qxd7 {[%emt 0:00:43]} 8. Nf5 {[%emt 0:00:17]} h6 {[%emt 0:22:29]} 9. c4 {[%emt 0:03:05]} g6 {[%emt 0:09:03]} 10. Ne3 {[%emt 0:00:48]} Nc6 {[%emt 0:01:42]} 11. Nc3 {[%emt 0:00:32]} Nd4 {[%emt 0:03:01]} 12. Ned5 {[%emt 0:02:17]} Nxd5 {[%emt 0:02:11]} 13. Nxd5 {[%emt 0:00:16]} Bg7 {[%emt 0:00:07]} 14. Be3 {[%emt 0:00:16]} Rc8 {[%emt 0:02:56]} 15. Rc1 {[%emt 0:03:22]} Kf8 {[%emt 0:15:35]} 16. O-O {[%emt 0:00:36]} Kg8 {[%emt 0:00:59]} 17. f4 {[%emt 0:04:01]} Kh7 {[%emt 0:02:18]} 18. f5 {[%emt 0:00:50]} gxf5 {[%emt 0:01:36]} 19. Bxd4 {[%emt 0:00:21]} exd4 {[%emt 0:00:02]} 20. Rxf5 {[%emt 0:00:23]} Qe6 {[%emt 0:01:53]} 21. Qf3 {[%emt 0:00:26]} Rhf8 {[%emt 0:01:40]} 22. b3 {[%emt 0:04:58]} b5 {[%emt 0:00:27]} 23. Nf4 {[%emt 0:03:54]} Qd7 {[%emt 0:01:56]} 24. Nh5 {[%emt 0:08:02]} bxc4 {[%emt 0:00:58]} 25. bxc4 {[%emt 0:00:09]} Qe6 {[%emt 0:00:24]} 26. Nxg7 {[%emt 0:03:24]} Kxg7 {[%emt 0:00:06]} 27. Rd5 {[%emt 0:00:51]} Rc5 {[%emt 0:01:23]} 28. Rxd4 {[%emt 0:00:47]} Rfc8 {[%emt 0:00:20]} 29. Qg3+ {[%emt 0:05:21]} Kh7 {[%emt 0:00:22]} 30. Qd3 {[%emt 0:00:41]} Qe5 {[%emt 0:02:59]} 31. Rf1 {[%emt 0:09:45]} R8c7 {[%emt 0:02:04]} 32. Rf5 {[%emt 0:02:33]} Qe6 {[%emt 0:00:12]} 33. Rfd5 {[%emt 0:02:46]} Rxd5 {[%emt 0:02:22]} 34. Rxd5 {[%emt 0:00:43]} Kg7 {[%emt 0:00:18]} 35. Qd4+ {[%emt 0:04:03]} Kh7 {[%emt 0:00:33]} 36. Rxd6 {[%emt 0:03:41]} Rxc4 {[%emt 0:01:04]} 37. Rxe6 {[%emt 0:01:24]} Rxd4 {[%emt 0:00:02]} 38. Re7 {[%emt 0:00:19]} Kg6 {[%emt 0:00:25]} 39. Rxa7 {[%emt 0:00:41]} Rxe4 {[%emt 0:00:11]} 40. Kf2 {[%emt 0:00:34]} Rb4 {[%emt 0:00:18]} 41. Ra8 {[%emt 0:01:29]} Rb1 {[%emt 0:00:20]} 42. h3 {[%emt 0:00:48]} Rb2+ {[%emt 0:00:30]} 43. Kg3 {[%emt 0:00:09]} Rc2 {[%emt 0:00:13]} 44. a4 {[%emt 0:00:23]} Ra2 {[%emt 0:00:12]} 45. a5 {[%emt 0:00:19]} Kg7 {[%emt 0:00:41]} 46. a6 {[%emt 0:00:14]} Ra4 {[%emt 0:01:28]} 47. a7 {[%emt 0:00:19]} Ra2 {[%emt 0:00:29]} 48. Kf4 {[%emt 0:00:17]} Ra1 {[%emt 0:03:35]} 1/2-1/2

[Event "XX Gran Hotel Bali-B 2023"]
[Site "Benidorm"]
[Date "2023.12.04"]
[Round "4.6"]
[White "Martinez Herranz, Francisco Jose"]
[Black "Castillo Garcia, Adrian"]
[Result "1/2-1/2"]
[ECO "E65"]
[WhiteElo "1923"]
[BlackElo "1974"]
[Annotator "NA RC"]
[PlyCount "39"]
[EventDate "2023.12.02"]
[EventType "swiss"]
[EventCountry "ESP"]
[SourceTitle "playchess.com"]
[Source "ChessBase"]
[SourceQuality "1"]
[TimeControl "5400+30"]

1. d4 {[%emt 0:00:11]} Nf6 {[%emt 0:00:45]} 2. Nf3 {[%emt 0:00:19]} g6 {[%emt 0:00:53]} 3. g3 {[%emt 0:00:39]} Bg7 {[%emt 0:00:32]} 4. Bg2 {[%emt 0:01:22]} O-O {[%emt 0:00:36]} 5. O-O {[%emt 0:00:12]} d6 {[%emt 0:02:00]} 6. c4 {[%emt 0:00:11]} Nbd7 {[%emt 0:00:09]} 7. Nc3 {[%emt 0:01:06]} c5 {[%emt 0:01:44]} 8. d5 {[%emt 0:03:22]} a6 {[%emt 0:02:17]} 9. a4 {[%emt 0:00:23]} Rb8 {[%emt 0:02:42]} 10. e4 {[%emt 0:08:23]} Ne8 {[%emt 0:05:39]} 11. Qe2 {[%emt 0:08:06]} Nc7 {[%emt 0:03:50]} 12. Bf4 {[%emt 0:04:11]} f6 {[%emt 0:05:48]} 13. h3 {[%emt 0:04:53]} Qe8 {[%emt 0:03:37]} 14. Be3 {[%emt 0:06:32]} Ne5 {[%emt 0:07:38]} 15. Nxe5 {[%emt 0:00:59]} fxe5 {[%emt 0:00:07]} 16. b3 {[%emt 0:11:35]} Bd7 {[%emt 0:06:20]} 17. Kh2 {[%emt 0:07:18]} Kh8 {[%emt 0:08:03]} 18. Ra2 {[%emt 0:01:22]} Rf7 {[%emt 0:01:46]} 19. Qd2 {[%emt 0:02:43]} Qg8 {[%emt 0:01:13]} 20. Rh1 {[%emt 0:36:43]} 1/2-1/2

[Event "XX Gran Hotel Bali-B 2023"]
[Site "Benidorm"]
[Date "2023.12.04"]
[Round "4.7"]
[White "Stanchev, Aleksandar"]
[Black "Golatkar Aditya"]
[Result "1/2-1/2"]
[ECO "D02"]
[WhiteElo "1948"]
[BlackElo "1349"]
[Annotator "NA RC"]
[PlyCount "59"]
[EventDate "2023.12.02"]
[EventType "swiss"]
[EventCountry "ESP"]
[SourceTitle "playchess.com"]
[Source "ChessBase"]
[SourceQuality "1"]
[TimeControl "5400+30"]

1. Nf3 {[%emt 0:00:07]} d5 {[%emt 0:06:17]} 2. g3 {[%emt 0:00:05]} Nf6 {[%emt 0:01:17]} 3. Bg2 {[%emt 0:00:19]} e6 {[%emt 0:00:37]} 4. O-O {[%emt 0:00:26]} Bd6 {[%emt 0:02:06]} 5. d4 {[%emt 0:00:08]} O-O {[%emt 0:00:42]} 6. Nbd2 {[%emt 0:02:51]} b6 {[%emt 0:03:39]} 7. b3 {[%emt 0:03:43]} Nbd7 {[%emt 0:02:16]} 8. Bb2 {[%emt 0:00:37]} Bb7 {[%emt 0:02:51]} 9. Ne5 {[%emt 0:07:13]} c5 {[%emt 0:02:10]} 10. Nxd7 {[%emt 0:09:46]} Qxd7 {[%emt 0:00:27]} 11. dxc5 {[%emt 0:00:26]} bxc5 {[%emt 0:01:23]} 12. e4 {[%emt 0:04:26]} d4 {[%emt 0:03:09]} 13. f4 {[%emt 0:04:11]} e5 {[%emt 0:01:34]} 14. f5 {[%emt 0:09:18]} Ba6 {[%emt 0:01:07]} 15. Re1 {[%emt 0:01:14]} Qc7 {[%emt 0:01:59]} 16. Bf1 {[%emt 0:02:13]} Bb7 {[%emt 0:01:10]} 17. Bd3 {[%emt 0:03:02]} a5 {[%emt 0:03:58]} 18. a4 {[%emt 0:00:20]} Nd7 {[%emt 0:01:58]} 19. Qf3 {[%emt 0:01:53]} Be7 {[%emt 0:01:03]} 20. Bc1 {[%emt 0:04:47]} Ba6 {[%emt 0:00:34]} 21. Nc4 {[%emt 0:10:25]} Bxc4 {[%emt 0:03:43]} 22. Bxc4 {[%emt 0:00:10]} Nb6 {[%emt 0:00:13]} 23. Qf1 {[%emt 0:00:49]} Nxc4 {[%emt 0:04:08]} 24. Qxc4 {[%emt 0:00:07]} Qb6 {[%emt 0:00:49]} 25. Bd2 {[%emt 0:00:21]} Rfd8 {[%emt 0:03:01]} 26. Red1 {[%emt 0:06:29]} Qc6 {[%emt 0:01:18]} 27. Re1 {[%emt 0:01:40]} Qa6 {[%emt 0:02:57]} 28. Rab1 {[%emt 0:01:59]} Rdb8 {[%emt 0:06:18]} 29. Qd5 {[%emt 0:01:52]} Qd6 {[%emt 0:00:24]} 30. Qc4 {[%emt 0:00:08]} 1/2-1/2